Cogmind - Beta 9.3 @@@ ROGUE MODE // 2020.01.11 @ 00:43:06 // Winter2019/RPGLIKE Player: badjay Result: Destroyed by Y-45 Defender with Beam Rifle Performance ------------- Evolutions (2) 1000 Regions Visited (5) 1000 Robots Destroyed (21) 105 Value Destroyed (513) 513 Prototype IDs (7) 140 Alien Tech Used (0) 0 Bonus (0) 0 TOTAL SCORE: 2758 Bonus ------- None Cogmind --------- Core Integrity 0/650 Matter 300/300 Energy 159/160 System Corruption 0% Temperature Cool (10) Movement Flying (40) Location -8/Materials Parts ------- > --- POWER (2) -------- Light Nuclear Core > --- PROPULSION (2) --- Flight Unit > --- UTILITY (2) ------ Improved Targeting Computer Armor Integrity Analyzer > --- WEAPON (2) ------- (None) > --- INVENTORY (0) ---- (None) Peak State ------------ > --- POWER ------------ Light Ion Engine Light Nuclear Core > --- PROPULSION ------- Flight Unit Flight Unit > --- UTILITY ---------- Targeting Computer > --- WEAPON ----------- EM Pulse Gun Small Laser > --- INVENTORY -------- (None) [Rating: 9] Favorites ----------- Power Light Nuclear Core Engine Light Ion Engine Power Core Light Nuclear Core Propulsion Flight Unit Flight Unit Flight Unit Utility Targeting Computer Processor Targeting Computer Weapon Small Laser Energy Gun Small Laser Build | -11 -10 -10 -10 -9 -8 ------- Run | Scr Mat Min Exi Min Mat Slots Evolved 4 | . 1 3 . . . Power 1 | . . 1 . . . Propulsion 1 | . . 1 . . . Utility 1 | . . 1 . . . Weapon 1 | . 1 . . . . Parts Attached 14 | . 9 3 . 2 . Power 3 | . 2 1 . . . Engine 2 | . 1 1 . . . Core 1 | . 1 . . . . Reactor . | . . . . . . Propulsion 3 | . 1 2 . . . Treads . | . . . . . . Leg . | . . . . . . Wheel . | . . . . . . Hover . | . . . . . . Flight 3 | . 1 2 . . . Utility 3 | . 1 . . 2 . Device . | . . . . . . Storage . | . . . . . . Processor 3 | . 1 . . 2 . Hackware . | . . . . . . Protection . | . . . . . . Artifact . | . . . . . . Weapon 5 | . 5 . . . . Energy Gun 5 | . 5 . . . . Energy Cannon . | . . . . . . Ballistic Gun . | . . . . . . Ballistic Cannon . | . . . . . . Launcher . | . . . . . . Special Weapon . | . . . . . . Impact Weapon . | . . . . . . Slashing Weapon . | . . . . . . Piercing Weapon . | . . . . . . Special Melee Weapon . | . . . . . . Unidentified Prototypes . | . . . . . . Parts Lost 3 | . . . . 3 . Power . | . . . . . . Propulsion 1 | . . . . 1 . Utility . | . . . . . . Weapon 2 | . . . . 2 . Highest Loss Streak 2 | . . . . 2 . Average Slot Usage (%) 76 | . 74 90 87 68 50 Engine 8 | . 13 8 12 4 . Core 9 | . 4 14 12 12 12 Flight 18 | . 17 23 25 16 12 Processor 15 | . 12 14 12 19 25 Energy Gun 23 | . 27 29 25 16 . Naked Turns 76 | . 76 . . . . Heaviest Build 11 | . 8 11 11 11 5 Greatest Support 13 | 3 9 13 13 13 9 Greatest Overweight (x) 1 | . 1 . . . . Average Overweight (x) . | . . . . . . Largest Inventory Capacity . | . . . . . . Average Capacity . | . . . . . . Most Carried . | . . . . . . Average Carried . | . . . . . . Final Capacity . | . . . . . . Final Carried . | . . . . . . Class Distribution -------------------- 98% | Hacker-Mutant Dominant Class ---------------- Hacker-Mutant | -10/Materials Hacker-Mutant | -10/Mines Hacker-Mutant | -10/Exiles Hacker-Mutant | -9/Mines Hacker-Mutant | -8/Materials Resources | -11 -10 -10 -10 -9 -8 ----------- Run | Scr Mat Min Exi Min Mat Matter Collected 340 | 200 80 40 . 20 . Remotely . | . . . . . . Salvage Created 733 | . 187 245 . 301 . Parts 56 | . 22 21 . 13 . Haulers Intercepted 1 | . 1 . . . . Recyclers Shooed 1 | . . . . 1 . Parts Field Recycled . | . . . . . . Retrieved Matter . | . . . . . . Parts Self-Destructed . | . . . . . . Prevented . | . . . . . . Kills | -11 -10 -10 -10 -9 -8 ------- Run | Scr Mat Min Exi Min Mat Combat Hostiles Destroyed 20 | . 7 9 . 4 . Guns 20 | . 7 9 . 4 . Classes Destroyed 4 | . 3 . . 1 . Hauler 1 | . 1 . . . . Swarmer 10 | . 3 7 . . . Grunt 8 | . 4 2 . 2 . Sentry 2 | . . . . 2 . Best Kill Streak 5 | . 3 5 . 2 . Combat Bots Only 5 | . 3 5 . 2 . Max Kills in Single Turn 1 | . 1 1 . 1 . Gunslinging . | . . . . . . Exploded . | . . . . . . Melee . | . . . . . . Uniques/NPCs Destroyed . | . . . . . . Combat | -11 -10 -10 -10 -9 -8 -------- Run | Scr Mat Min Exi Min Mat Damage Taken 1337 | . 331 446 . 465 95 Core 1146 | . 288 374 . 399 85 Absorbed by Shields . | . . . . . . Redirected to Core 661 | . 141 245 . 237 38 Core Remaining (%) 52 | 100 . . . 4 . Volleys Fired 98 | . 37 34 . 27 . Largest 2 | . 2 2 . 1 . Hottest 80 | . 80 80 . 40 . Shots Fired 111 | . 45 39 . 27 . Gun 111 | . 45 39 . 27 . Cannon . | . . . . . . Launcher . | . . . . . . Special . | . . . . . . Kinetic . | . . . . . . Thermal 50 | . 45 5 . . . Explosive . | . . . . . . Electromagnetic 61 | . . 34 . 27 . Robot Hit Streak 11 | . 9 10 . 11 . Robot Miss Streak 4 | . 2 3 . 4 . Penetration Max . | . . . . . . Secondary Targets . | . . . . . . Shots Hit Robots 75 | . 33 20 . 22 . Core Hits 37 | . 16 12 . 9 . Critical Hits . | . . . . . . Critical Kills . | . . . . . . Critical Parts Destroyed . | . . . . . . Melee Attacks . | . . . . . . Impact . | . . . . . . Slashing . | . . . . . . Piercing . | . . . . . . Sneak Attacks . | . . . . . . Combat Hostiles . | . . . . . . Follow-up Attacks . | . . . . . . Damage Inflicted 1059 | . 388 297 . 374 . Guns 939 | . 385 265 . 289 . Cannons . | . . . . . . Explosions 117 | . . 32 . 85 . Melee . | . . . . . . Ramming 3 | . 3 . . . . Kinetic . | . . . . . . Thermal 547 | . 385 77 . 85 . Explosive . | . . . . . . Electromagnetic 509 | . . 220 . 289 . Impact . | . . . . . . Slashing . | . . . . . . Piercing . | . . . . . . Highest Corruption . | . . . . . . Average Corruption . | . . . . . . Corruption Purged . | . . . . . . Overload Shots . | . . . . . . Overflow Damage . | . . . . . . Projectiles . | . . . . . . Explosions . | . . . . . . Melee . | . . . . . . Knockbacks . | . . . . . . Impact . | . . . . . . Kinetic . | . . . . . . Secondary . | . . . . . . Self-Inflicted Damage 49 | . 1 . . 48 . Shots 1 | . . . . 1 . Rammed 1 | . 1 . . . . Targets Rammed 1 | . 1 . . . . Kicked . | . . . . . . Crushed . | . . . . . . Highest Temperature 299 | . 121 299 . 190 . Average Temperature 95 | . 43 146 . 85 . Received Heat Transfer 471 | . 162 93 . 171 45 Effects 1 | . . 1 . . . Energy Bleed 1 | . . 1 . . . Siege Activations . | . . . . . . Robots Corrupted . | . . . . . . Combat Hostiles . | . . . . . . Parts Fried . | . . . . . . Impact Corruptions . | . . . . . . Robots Melted . | . . . . . . Combat Hostiles . | . . . . . . Parts Melted 3 | . 3 . . . . Heat Transferred 1125 | . 875 150 . 100 . Parts Sabotaged . | . . . . . . Parts Stolen . | . . . . . . Parts Stripped . | . . . . . . Power Chain Reactions 2 | . . 1 . 1 . Missiles Intercepted . | . . . . . . Alert | -11 -10 -10 -10 -9 -8 ------- Run | Scr Mat Min Exi Min Mat Peak Influence 261 | . 253 261 . 80 159 Average Influence 105 | . 111 176 . 28 82 Maximum Alert Level 1 | . 1 1 . . . Low Security (%) 74 | 100 87 26 . 100 100 Level 1 25 | . 12 73 . . . Level 2 . | . . . . . . Level 3 . | . . . . . . Level 4 . | . . . . . . Level 5 . | . . . . . . High Security . | . . . . . . Max Security . | . . . . . . Squads Dispatched 4 | . 2 . . 1 1 Investigation 2 | . 2 . . . . Extermination . | . . . . . . Reinforcement 2 | . . . . 1 1 Assault . | . . . . . . Garrison . | . . . . . . Intercept . | . . . . . . Construction Impeded 1 | . . . . 1 . Haulers Reinforced . | . . . . . . Stealth | -11 -10 -10 -10 -9 -8 --------- Run | Scr Mat Min Exi Min Mat Distress Signals 1 | . 1 . . . . Communications Jammed . | . . . . . . Distress Signals . | . . . . . . Times Spotted 66 | . 17 32 . 6 11 Peak Tracking Total 10 | . 3 10 . 3 8 Tactical Retreats 11 | . 2 7 . 1 1 Traps | -11 -10 -10 -10 -9 -8 ------- Run | Scr Mat Min Exi Min Mat Traps Triggered . | . . . . . . Indirectly . | . . . . . . Trap Hack Attempts . | . . . . . . Triggered . | . . . . . . Disarmed . | . . . . . . Reprogrammed . | . . . . . . Reused . | . . . . . . Traps Extracted . | . . . . . . Installed . | . . . . . . Triggered . | . . . . . . Machines | -11 -10 -10 -10 -9 -8 ---------- Run | Scr Mat Min Exi Min Mat Machines Disabled 1 | . . 1 . . . Max in Single Turn 1 | . . 1 . . . Machines Sabotaged . | . . . . . . Garrisons Compromised . | . . . . . . Overloaded Fab Kills . | . . . . . . Fab Network Shutdowns . | . . . . . . Hacking | -11 -10 -10 -10 -9 -8 --------- Run | Scr Mat Min Exi Min Mat Machines Accessed 10 | . 9 . . . 1 Terminals 9 | . 8 . . . 1 Fabricators . | . . . . . . Repair Stations . | . . . . . . Recycling Units 1 | . 1 . . . . Scanalyzers . | . . . . . . Garrison Access . | . . . . . . Total Hacks 49 | . 46 . . . 3 Successful 28 | . 27 . . . 1 Failed 20 | . 18 . . . 2 Catastrophic 3 | . 3 . . . . Database Lockouts 1 | . 1 . . . . Manual 43 | . 40 . . . 3 Terminals 45 | . 42 . . . 3 Fabricators . | . . . . . . Repair Stations . | . . . . . . Recycling Units 4 | . 4 . . . . Scanalyzers . | . . . . . . Garrison Access . | . . . . . . Terminal Hacks 15 | . 15 . . . . Prototype ID Bank 9 | . 9 . . . . Level Access Points 1 | . 1 . . . . Branch Access Points 1 | . 1 . . . . Terminal Index 1 | . 1 . . . . Alert Level 1 | . 1 . . . . Recall Investigation 1 | . 1 . . . . Registered Prototypes 1 | . 1 . . . . Fabricator Hacks . | . . . . . . Repair Station Hacks . | . . . . . . Recycling Unit Hacks 1 | . 1 . . . . Retrieve Components 1 | . 1 . . . . Scanalyzer . | . . . . . . Garrison Access Hacks . | . . . . . . Unauthorized Hacks 30 | . 26 . . . 4 Terminals 10 | . 9 . . . 1 Track 3 | . 3 . . . . Assimilate 2 | . 2 . . . . Botnet 4 | . 3 . . . 1 Operators 1 | . 1 . . . . Fabricators . | . . . . . . Repair Stations . | . . . . . . Recycling Units 2 | . 2 . . . . Reject 1 | . 1 . . . . Mask 1 | . 1 . . . . Scanalyzers . | . . . . . . Garrison Access . | . . . . . . Data Cores Recovered . | . . . . . . Used . | . . . . . . Hacking Detections 9 | . 8 . . . 1 Full Trace Events 1 | . 1 . . . . Feedback Events . | . . . . . . Feedback Blocked . | . . . . . . Robot Schematics Acquired . | . . . . . . Robots Built . | . . . . . . Matter . | . . . . . . Time . | . . . . . . Total Robot Build Rating . | . . . . . . Part Schematics Acquired . | . . . . . . Parts Built . | . . . . . . Matter . | . . . . . . Time . | . . . . . . Total Part Build Rating . | . . . . . . Parts Repaired . | . . . . . . Time . | . . . . . . Parts Recycled . | . . . . . . Recycled Matter . | . . . . . . Retrieved Matter . | . . . . . . Retrieved Components 8 | . 8 . . . . Parts Scanalyzed . | . . . . . . Part Schematics Acquired . | . . . . . . Parts Damaged . | . . . . . . Bothacking | -11 -10 -10 -10 -9 -8 ------------ Run | Scr Mat Min Exi Min Mat Used RIF Installer . | . . . . . . Robots Hacked . | . . . . . . Non-combat . | . . . . . . Combat . | . . . . . . Robot Hacks Applied . | . . . . . . Relay Couplers Released . | . . . . . . Robots Rewired . | . . . . . . Allies Hacked . | . . . . . . Hacks Repelled . | . . . . . . Allies | -11 -10 -10 -10 -9 -8 -------- Run | Scr Mat Min Exi Min Mat Total Allies 1 | . 1 . . . . Largest Group 1 | . 1 1 . . . Highest-Rated Group 10 | . 10 10 . . . Highest-Rated Ally 10 | . 10 10 . . . Total Orders 3 | . 2 1 . . . STAY 1 | . . 1 . . . GOTO 1 | . 1 . . . . FOLLOW 1 | . 1 . . . . Ally Attacks . | . . . . . . Total Damage . | . . . . . . Kills . | . . . . . . Allies Corrupted . | . . . . . . Allies Melted . | . . . . . . Intel | -11 -10 -10 -10 -9 -8 ------- Run | Scr Mat Min Exi Min Mat Robot Analysis Total . | . . . . . . Derelict Logs Recovered 3 | . . 1 . 2 . Drone Launches . | . . . . . . Drone Recoveries . | . . . . . . Exploration | -11 -10 -10 -10 -9 -8 ------------- Run | Scr Mat Min Exi Min Mat Turns Passed 1316 | 11 491 360 47 335 72 Spaces Moved 2278 | 23 773 586 128 589 179 Core 157 | 23 134 . . . . Treads . | . . . . . . Legs . | . . . . . . Wheels . | . . . . . . Hover . | . . . . . . Flight 2121 | . 639 586 128 589 179 Fastest Speed 37 | 50 40 37 37 37 40 Average Speed 39 | 50 41 37 37 38 40 Slowest Speed 100 | 50 100 40 37 40 40 Overloaded Moves . | . . . . . . Propulsion Burnouts . | . . . . . . Robots Hopped 40 | . 13 . . 26 1 Cave-ins Triggered . | . . . . . . Exploration Rate (%) 57 | 3 96 93 51 87 15 Regions Visited 5 Branch Regions 3 Pre-discovered Areas . | . . . . . . Known Exits Taken 1 | . 1 . . . . Unknown Exits Taken 4 | 1 . 1 1 1 . Scrap Searched 3 | . . 2 . 1 . Spaces Dug . | . . . . . . Terrain Destroyed 13 | . . 8 . 5 . Melee . | . . . . . . Projectile . | . . . . . . AOE 13 | . . 8 . 5 . Actions | -11 -10 -10 -10 -9 -8 --------- Run | Scr Mat Min Exi Min Mat Total 2533 | 22 880 686 127 640 178 Wait 156 | . 55 53 . 48 . Move 2197 | 22 746 585 127 540 177 Hop 36 | . 13 . . 22 1 Pick Up . | . . . . . . Fast Attach 10 | . 7 2 . 1 . Attach . | . . . . . . Detach . | . . . . . . Swap 4 | . 2 1 . 1 . Drop 6 | . 4 1 . 1 . Fire 98 | . 37 34 . 27 . Melee . | . . . . . . Ram 1 | . 1 . . . . Kick . | . . . . . . Crush . | . . . . . . Escape Stasis . | . . . . . . Rewire . | . . . . . . Trap . | . . . . . . Miscellaneous 25 | . 15 10 . . . Route ------- -11/Scrapyard -10/Materials (discovered 5 exits: *Mat x3 / *Min x2) -10/Mines (discovered 3 exits: *Mat x2 / [*Exi]) -10/Exiles -9/Mines (discovered 2 exits: *Mat x2) -8/Materials History --------- Turn | Location | Event 4 | -11/Scrapyard | Discovered new exit (range 16) 12 | -11/Scrapyard | Entered Materials 120 | -10/Materials | Discovered new exit (range 15) 143 | -10/Materials | Identified exit to Mines 161 | -10/Materials | Discovered new exit (range 9) 207 | -10/Materials | Identified exit to Materials 231 | -10/Materials | Upgraded with Weapon slot (x1) 334 | -10/Materials | Build established: Hacker-Mutant 337 | -10/Materials | Central database locked down 503 | -10/Materials | Entered Mines 503 | -10/Mines | Accompanied by 1 ally 505 | -10/Mines | Reached level 2 506 | -10/Mines | Met a Derelict bent on vengeance 608 | -10/Mines | Upgraded with Power slot (x1) 608 | -10/Mines | Upgraded with Propulsion slot (x1) 608 | -10/Mines | Upgraded with Utility slot (x1) 631 | -10/Mines | Assembled infested the area 645 | -10/Mines | Discovered exit to Materials (range 15) 783 | -10/Mines | Discovered exit to Materials (range 12) 818 | -10/Mines | Learned Materials interactive machine intel 861 | -10/Mines | Deemed a non-threat by the Exiles lab entrance 862 | -10/Mines | Discovered new exit (range 5) 863 | -10/Mines | Entered Exiles 872 | -10/Exiles | Met 8R-AWN 879 | -10/Exiles | Met EX-HEX 893 | -10/Exiles | Met EX-DEC 906 | -10/Exiles | Discovered new exit (range 15) 910 | -10/Exiles | Entered Mines 912 | -9/Mines | Reached level 3 935 | -9/Mines | Received a Rocket Launcher from a helpful Derelict 943 | -9/Mines | Discovered new exit (range 12) 1026 | -9/Mines | Core integrity fell below 50% 1054 | -9/Mines | Core integrity fell below 20% 1128 | -9/Mines | Learned Materials non-interactive machine intel 1171 | -9/Mines | Discovered new exit (range 5) 1245 | -9/Mines | Entered Materials 1246 | -8/Materials | Loaded intel: 31 non-interactive machine locations 1246 | -8/Materials | Core integrity fell below 50% 1246 | -8/Materials | Core integrity fell below 20% 1247 | -8/Materials | Loaded intel: 19 interactive machine locations 1247 | -8/Materials | Reached level 4 1317 | -8/Materials | Destroyed by Y-45 Defender with Beam Rifle Last Messages --------------- 01222_ R-06 Scavenger collects Heat Sink. 01226_ Acquired 20 matter. 01240_ G-47 Trooper misfires. 01242_ EM Pulse Gun destroyed. LOCATION=UNKNOWN GOAL=ESCAPE Loading Materials non-interactive machine intel (x31)... Loading Materials interactive machine intel (x19)... 01247_ Reached level 4. 01247_ Upgraded: Core Integrity (+50) 01255_ ALERT: Hostiles spotted, dispatching reinforcements to Terminal M012. 01269_ Connecting with Terminal... 01269_ Current location identified: Materials >>Trojan(Botnet) Trojan loaded successfully. Testing... Terminal linked with 0 systems. Awaiting botnet instructions. 01272_ T-07 Excavator is excavating. Map ----- +----------------------------------------------------+ | | | | | | | | | | | ???????????????????????????????????????????? | | ???????????????????????????????????????????? | | ??????????????????#####????????????????????? | | ?????????????????? =#????????????????????? | | ?????????????????! #????????????????????? | | ???????????#####? * #????????????????????? | | ???????????# + #????????????????????? | | ############ # #????????????????????? | | + #????????????????????? | | ########### #############???????????????? | | #?????????# ####### #???????????????? | | +######????# #???????????????? | | #????# Y #???????????????? | | """ #????# #???????????????? | | """ #????########### #???????????????? | | """ #??????????????## ##???????????????? | | #???????????????# #????????????????? | | *#???????????????# #????????????????? | | ###/###???????????????# #????????????????? | | ### #?????????"T"????## ########?????????? | | # #????????????????# @ #?????? | | # #????????????????# #?????? | | # #?????????????? o +?????? | | # #?????????""""" #w #?????? | | # #?????????""""" #a """ #?????? | | # #?????????""""" ?# """"" #?????? | | # #### #?????? ??# """""????????? | | # #??????##???# "Y" """""????????? | | # #### #???????????## """ """?????????? | | ### #?????????????????# ??????????? | | ??# #?????????????????# ??????????? | | ??# #?????????????????#####?#####??????????? | | ??# #??????????????????????????????????????? | | ??# #??????????????????????????????????????? | | ??# #??????????????????????????????????????? | | ### #########??????????????????????????????? | | #????????????????????????? | | ######+######???????????"""????????????????? | | ???"""??????????????????"""????????????????? | | ???"T"??????????????????"""????????????????? | | ???????????????????????????????????????????? | | ???????????????????????????????????????????? | | ???????????????????????????????????????????? | | ???????????????????????????????????????????? | | ???????????????????????????????????????????? | +----------------------------------------------------+ Best States ------------- Heat Dissipation 25 Energy Generation 19 Energy Capacity 185 Matter Stores 300 Matter Capacity 300 Sight Range 16 Terrain Scan Density 10 Evasion (%) 62 Targeting Accuracy 6 Armor Integrity Analysis 33 Offensive Hacking 10 Defensive Hacking 15 Item Schematics ----------------- None Robot Schematics ------------------ None Fabricated ------------ Nothing Alien Tech Used ----------------- None Achievements -------------- None Challenges ------------ None RPGLIKE | -11 -10 -10 -10 -9 -8 --------- Run | Scr Mat Min Exi Min Mat Levels Raised 3 | . . 1 . 1 1 XP Earned 8315 | 3000 1030 1625 200 900 1560 XP Spent 4225 | . 2700 1500 . . 25 Upgrades 11 | . 7 3 . . 1 Power Slot 1 | . . 1 . . . Propulsion Slot 1 | . . 1 . . . Utility Slot 1 | . . 1 . . . Weapon Slot 1 | . 1 . . . . Core Integrity 1 | . . . . . 1 Mass Support 1 | . 1 . . . . Hack Attack % 2 | . 2 . . . . Hack Defense % 3 | . 3 . . . . Protomatter Created 148 | . 102 46 . . . Integrity Restored 500 | . 302 198 . . . Core 486 | . 288 198 . . . Parts 14 | . 14 . . . . Protomatter Decayed 20 | . . 20 . . . Game ------ Seed AutogunLauncherReactor Manual? 0 Play Time 00:26:27 Cumulative 139.3 hours Start 2020.01.10 @ 22:13:19 End 2020.01.11 @ 00:43:06 Sessions 1 Manual Loads 0 Difficulty Rogue Special Mode Winter2019/RPGLIKE Game No. 143 Rogue 143 Adventurer 0 Explorer 0 Win Type - Total 11 Types 10/0/0/1/0/0/0 Lore% 72 Gallery% 71 Achievement% 63 Wizard Run 0 Options --------- ASCII 0 Keyboard 0 Movement Numpad Keybinds 0 Fullscreen 2 Font 18/SmallcapsGlow Map View 76x50 Tactical HUD 1 Map Filters NONE Filters NONE Steam X RUN: 6896165f-91af-4d37-aaf6-3086202db9ad